bitfinex-derivatives/quotes_SOLF0:USTF0_20250109
["timestamp","ask_amount","ask_price","bid_price","bid_amount"]
[1736412413832,3.5,191.86,191.83,2.6075]
[1736412414033,1.46,191.87,191.73,4.4072]
[1736412414235,3.5,191.86,191.75,16.72420739]
[1736412414931,3.5,191.86,191.85,2.6072]
[1736412415638,1.5606,191.89,191.75,16.72420739]
[1736412415936,3.5,191.86,191.73,4.4072]
[1736412416134,6.1073,191.86,191.81,2.6077]
[1736412416835,6.1073,191.86,191.82,2.6077]
[1736412417025,3.5,191.86,191.82,2.6077]
[1736412417432,3.5,191.86,191.83,2.6076]
[1736412418439,3.5,191.86,191.73,4.4072]
[1736412421439,6.1072,191.86,191.81,2.6077]
[1736412422341,6.1072,191.86,191.73,4.4072]
[1736412422543,3.1074,191.88,191.73,4.4072]
[1736412422840,3.5,191.87,191.73,4.4072]
[1736412423044,3.5,191.87,191.84,2.6074]
[1736412423339,20.22420739,191.87,191.73,4.4072]
[1736412423941,2.6073,191.85,191.73,4.4072]
[1736412424330,20.22420739,191.87,191.69,109.80810353]
[1736412424331,19.33210739,191.81,191.69,109.80810353]
[1736412424540,3.5,191.8,191.69,109.80810353]
[1736412424737,5.02,191.8,191.69,109.80810353]
[1736412424943,7.628,191.8,191.75,2.6086]
[1736412425439,9.2421,191.8,191.75,2.6086]
[1736412425637,2.6082,191.79,191.74,2.6088]
[1736412427036,8.14,191.8,191.69,109.80810353]
[1736412427241,10.748,191.8,191.75,2.6087]
[1736412427535,10.45742384,191.78,191.75,2.6087]
[1736412428436,2.6085,191.77,191.71,2.6091]
[1736412428634,10.45742384,191.74,191.71,2.6091]
[1736412428842,3.5,191.73,191.71,2.6091]
[1736412429245,3.5,191.73,191.61,2.9827]
[1736412429547,10.45742384,191.7,191.61,2.9827]
[1736412429747,16.56642384,191.73,191.61,2.9827]
[1736412430346,3.5,191.73,191.62,10.45742384]
[1736412430743,10.45742384,191.7,191.61,2.9827]
[1736412431245,10.45742384,191.64,191.54,7.1228695]
[1736412431448,3.5,191.63,191.54,7.1228695]
[1736412431747,3.5,191.63,191.6,2.6107]
[1736412431944,3.5,191.63,191.52,28.49147801]
[1736412432341,3.5,191.62,191.52,28.49147801]
[1736412432538,10.45742384,191.64,191.53,10.45742384]
[1736412432844,3.5,191.64,191.56,10.45742384]
[1736412433045,3.5,191.64,191.63,2.6103]
[1736412433445,3.5,191.64,191.57,1.3216]
[1736412433645,3.5,191.64,191.62,2.6104]
[1736412434447,10.45742384,191.67,191.62,2.6104]
[1736412434637,3.5,191.64,191.63,2.6102]
[1736412434842,3.5,191.67,191.59,10.45742384]
[1736412435250,3.5,191.67,191.66,2.6099]
[1736412435449,1.5837,191.69,191.66,2.6099]
[1736412436049,1.5837,191.69,191.65,2.61]
[1736412436947,10.45742384,191.67,191.53,10.45742384]
[1736412437244,1.5837,191.69,191.64,2.6102]
[1736412437449,1.5837,191.69,191.54,16.75027302]
[1736412437948,1.5837,191.69,191.64,2.6102]
[1736412438145,3.5,191.68,191.64,2.6102]
[1736412438344,3.5,191.68,191.52,1.3212]
[1736412438554,3.5,191.68,191.56,2.6112]
[1736412438750,16.75027302,191.67,191.52,1.3212]
[1736412439145,16.75027302,191.67,191.61,2.6106]
[1736412439346,16.75027302,191.64,191.61,2.6106]
[1736412440850,16.75027302,191.64,191.62,2.6105]
[1736412441645,16.75027302,191.67,191.62,2.6105]
[1736412441950,16.75027302,191.67,191.52,1.3212]
[1736412442649,16.75027302,191.67,191.56,2.6112]
[1736412442847,16.75027302,191.67,191.52,1.3212]
[1736412443552,16.75027302,191.67,191.63,2.6103]
[1736412443853,1.5837,191.69,191.54,20.25027302]
[1736412444046,3.5,191.68,191.57,16.75027302]
[1736412444246,3.5,191.69,191.58,1.5369]
[1736412444545,3.5,191.69,191.59,1.6104]
[1736412444947,2.6091,191.72,191.62,2.6103]
[1736412445151,16.75027302,191.73,191.59,1.6104]
[1736412445345,3.5,191.72,191.59,1.6104]
[1736412445550,21.39627302,191.79,191.63,16.75027302]
[1736412445752,3.5,191.78,191.63,16.75027302]
[1736412446458,3.5,191.77,191.66,16.75027302]
[1736412446648,3.5,191.77,191.76,2.6085]
[1736412446849,3.5,191.77,191.67,1.4587]
[1736412447251,3.5,191.8,191.69,16.75027302]
[1736412447445,16.75027302,191.85,191.69,16.75027302]
[1736412447753,3.5,191.84,191.79,2.6081]
[1736412447945,3.5,191.83,191.69,18.06537302]
[1736412449355,3.5,191.83,191.73,2.6089]
[1736412449549,3.5,191.83,191.69,18.06537302]
[1736412449956,3.5,191.83,191.8,2.608]
[1736412450352,16.75027302,191.87,191.72,16.75027302]
[1736412450554,3.5,191.84,191.72,16.75027302]
[1736412452159,3.5,191.84,191.83,2.6076]
[1736412452358,3.5,191.87,191.75,16.75027302]
[1736412452561,16.95040302,191.9,191.76,3.0436]
[1736412452759,16.95040302,191.9,191.8,2.608]
[1736412453059,3.5,191.89,191.76,3.0436]
[1736412453257,3.5,191.89,191.86,2.6072]
[1736412454055,6.1068,191.89,191.83,2.6076]
[1736412454255,1.5361,191.88,191.83,2.6076]
[1736412454458,16.75027302,191.87,191.69,18.06537302]
[1736412454761,1.5361,191.88,191.7,3.0239]
[1736412454762,16.75027302,191.84,191.7,3.0239]
[1736412454953,3.5,191.83,191.7,1.4734]
[1736412455150,3.5,191.83,191.71,1.5468]
[1736412455859,3.5,191.83,191.72,16.75027302]
[1736412456060,3.5,191.83,191.82,2.6077]
[1736412456461,3.5,191.83,191.71,1.5468]
[1736412457752,3.5,191.83,191.79,2.608]
[1736412458057,3.5,191.83,191.71,1.5468]
[1736412458457,3.5,191.83,191.72,16.75027302]
[1736412458960,3.5,191.83,191.82,2.6077]
[1736412459864,3.5,191.83,191.72,16.75027302]
[1736412460061,3.5,191.83,191.7,1.4734]
[1736412460364,16.75027302,191.81,191.66,18.28487302]
[1736412460563,1.5144,191.8,191.66,1.5346]
[1736412460864,3.0398,191.8,191.66,1.5346]
[1736412461064,3.0398,191.8,191.72,2.6091]
[1736412461065,2.6085,191.77,191.72,2.6091]
[1736412461262,3.5,191.76,191.72,2.6091]
[1736412461562,3.5,191.76,191.65,1.6018]
[1736412462860,3.5,191.77,191.65,1.6018]
[1736412463161,3.5,191.77,191.67,16.75027302]
[1736412463459,3.5,191.77,191.76,2.6085]
[1736412463660,6.5398,191.8,191.67,16.75027302]
[1736412463855,3.5,191.8,191.7,16.75027302]
[1736412464163,3.5,191.8,191.71,1.5687]
[1736412465164,3.5,191.8,191.79,2.6081]
[1736412465359,16.75027302,191.87,191.71,1.5687]
[1736412465566,3.2226,191.89,191.73,16.75027302]
[1736412465567,3.5,191.86,191.73,16.75027302]
[1736412465766,16.75027302,191.84,191.72,3.5]
[1736412466363,2.6076,191.83,191.74,2.6087]
[1736412466561,4.191,191.83,191.71,2.8826]
[1736412466763,4.191,191.83,191.71,1.5687]
[1736412466959,16.75027302,191.81,191.67,16.75027302]
[1736412467165,7.6139,191.8,191.66,1.3132]
[1736412467368,9.0936,191.8,191.66,1.3132]
[1736412467965,9.0936,191.8,191.7,2.6093]
[1736412468160,9.0936,191.8,191.66,1.3132]
[1736412468560,9.0936,191.8,191.74,2.6087]
[1736412468757,6.4855,191.8,191.74,2.6087]
[1736412468962,19.35857302,191.78,191.65,3.0939]
[1736412469162,16.75027302,191.78,191.74,2.6088]
[1736412469568,16.75027302,191.78,191.64,8.90057003]
[1736412469569,19.35857302,191.78,191.64,8.90057003]
[1736412469761,16.75027302,191.78,191.64,8.90057003]
[1736412471063,19.35857302,191.78,191.73,2.6089]
[1736412472367,16.75027302,191.78,191.64,8.90057003]
[1736412473365,97.12,191.92,191.64,8.90057003]
[1736412473665,16.75027302,191.82,191.7,2.6093]
[1736412473866,5.0461,191.81,191.67,1.5684]
[1736412474269,5.0461,191.81,191.76,2.6085]
[1736412474868,1.5157,191.8,191.76,2.6085]
[1736412476279,1.5157,191.8,191.67,1.5684]
[1736412476571,16.75027302,191.79,191.64,8.90057003]
[1736412477067,2.6084,191.78,191.73,2.609]
[1736412479575,16.75027302,191.79,191.64,8.90057003]
[1736412479774,1.5157,191.8,191.64,8.90057003]
[1736412479775,3.5,191.78,191.66,16.75027302]
[1736412479970,3.5,191.78,191.64,8.90057003]
[1736412480671,3.5,191.78,191.66,16.75027302]
[1736412480875,1.5157,191.8,191.66,16.75027302]
[1736412481072,3.5,191.79,191.66,16.75027302]
[1736412481576,3.5,191.78,191.64,8.90057003]
[1736412482576,2.6085,191.77,191.68,2.6096]
[1736412482774,3.5,191.78,191.64,8.90057003]
[1736412483576,2.6087,191.76,191.72,2.6091]
[1736412483777,3.5,191.78,191.72,2.6091]
[1736412484165,16.75027302,191.76,191.64,8.90057003]
[1736412484871,2.6091,191.73,191.68,2.6095]
[1736412485065,3.5,191.72,191.68,2.6095]
[1736412485266,5.1,191.72,191.64,8.90057003]
[1736412485567,5.1,191.72,191.66,2.6099]
[1736412485774,6.6794,191.72,191.61,1.6054]
[1736412486770,6.6794,191.72,191.69,2.6095]
[1736412486982,6.6794,191.72,191.62,16.75027302]
[1736412487276,5.1,191.72,191.7,2.6093]
[1736412487477,1.6,191.72,191.7,2.6093]
[1736412487674,3.5,191.71,191.7,2.6093]
[1736412487874,3.5,191.74,191.67,10.46033507]
[1736412488470,3.5,191.74,191.73,2.609]
[1736412488878,3.5,191.77,191.67,10.46033507]
[1736412489375,3.5,191.77,191.67,16.7284744]
[1736412489678,3.5,191.77,191.64,16.7284744]
[1736412489870,6.1084,191.77,191.67,2.6097]
[1736412490077,6.1084,191.77,191.64,16.7284744]
[1736412490475,7.5767,191.77,191.64,16.7284744]
[1736412491177,2.6087,191.75,191.64,16.7284744]
[1736412491974,2.6088,191.74,191.7,2.6093]
[1736412492272,1.5046,191.76,191.62,3.5]
[1736412492483,16.7284744,191.74,191.66,2.6098]
[1736412492781,16.7284744,191.74,191.58,119.34678237]
[1736412493082,1.5046,191.76,191.62,2.6104]
[1736412493083,2.6098,191.67,191.62,2.6104]
[1736412493278,6.509,191.66,191.55,18.2075744]
[1736412493474,6.509,191.66,191.55,1.4791]
[1736412493680,2.6101,191.65,191.6,2.6107]
[1736412494581,9.119,191.66,191.55,1.4791]
[1736412495180,6.509,191.66,191.55,1.4791]
[1736412495381,2.6101,191.65,191.55,1.4791]
[1736412495880,2.6102,191.64,191.53,25.12369895]
[1736412496084,6.509,191.66,191.53,8.39522455]
[1736412496276,0.8060463,191.65,191.53,8.39522455]
[1736412496583,9.119,191.66,191.59,2.6108]
[1736412497082,9.119,191.66,191.53,8.39522455]
[1736412497284,3.5,191.65,191.63,2.6103]
[1736412497480,3.5,191.64,191.53,25.12369895]
[1736412497878,1.544,191.66,191.58,16.7284744]
[1736412498085,3.5,191.69,191.58,16.7284744]
[1736412498377,3.5,191.69,191.67,2.6097]
[1736412498583,16.7284744,191.68,191.54,2.9261]
[1736412498780,18.2949744,191.68,191.54,2.9261]
[1736412498978,1.5665,191.68,191.55,16.7284744]
[1736412499575,3.5,191.69,191.67,2.6098]
[1736412499775,3.5,191.69,191.61,16.7284744]
[1736412499982,1.5267,191.73,191.64,16.7284744]
[1736412500182,1.5267,191.73,191.72,2.6091]
[1736412501079,3.5,191.74,191.72,2.6091]
[1736412501284,3.5,191.74,191.73,2.609]
[1736412501779,0.1868,191.84,191.71,16.7284744]
[1736412502180,0.1868,191.84,191.74,2.6087]
[1736412502382,0.1868,191.84,191.71,16.7284744]
[1736412502582,0.1868,191.84,191.68,3.5]
[1736412502583,0.1868,191.84,191.7,16.7284744]
[1736412502883,2.7943,191.84,191.78,2.6083]
[1736412503081,0.1868,191.84,191.73,16.7284744]
[1736412503485,0.1868,191.84,191.78,2.6082]
[1736412504081,0.80515042,191.83,191.75,2.6086]
[1736412504280,0.80515042,191.83,191.68,20.2284744]
[1736412504475,2.6079,191.82,191.74,2.6088]
[1736412504684,2.6079,191.82,191.68,20.2284744]
[1736412504884,0.1868,191.84,191.68,20.2284744]
[1736412505280,0.1868,191.84,191.78,2.6082]
[1736412505491,3.5,191.83,191.71,16.7284744]
[1736412505978,3.5,191.83,191.79,2.6081]
[1736412506583,3.5,191.83,191.7,16.7284744]
[1736412507190,20.2284744,191.83,191.67,20.2284744]
[1736412507789,2.6077,191.82,191.67,20.2284744]
[1736412508283,3.5,191.82,191.7,16.7284744]
[1736412508481,3.5,191.82,191.71,1.5609]
[1736412508984,3.5,191.82,191.74,2.6088]
[1736412509187,3.5,191.82,191.71,1.5609]
[1736412509688,6.1078,191.82,191.76,2.6084]
[1736412510085,6.1078,191.82,191.71,1.5609]
[1736412511088,6.1078,191.82,191.77,2.6084]
[1736412514190,3.5,191.82,191.79,2.6081]
[1736412515685,6.1077,191.82,191.77,2.6083]
[1736412515891,3.5,191.82,191.71,18.2893744]
[1736412516684,3.5,191.82,191.78,2.6082]
[1736412517193,3.5,191.83,191.78,2.6082]
[1736412517688,6.1077,191.83,191.78,2.6082]
[1736412517886,20.2284744,191.83,191.74,2.6087]
[1736412518088,0.80519263,191.82,191.66,18.2691744]
[1736412518294,2.6085,191.77,191.66,18.2691744]
[1736412518591,3.5,191.77,191.66,1.5407]
[1736412519189,20.2284744,191.77,191.57,7.13834215]
[1736412519380,16.7284744,191.73,191.57,8.64934215]
[1736412520083,2.6094,191.7,191.61,2.6105]
[1736412520288,3.5,191.69,191.57,1.511]
[1736412520792,1.4908,191.68,191.57,1.511]
[1736412521292,2.6099,191.66,191.59,2.6107]
[1736412521592,2.6099,191.66,191.57,1.511]
[1736412521988,2.6101,191.65,191.57,1.511]
[1736412523387,4.1005,191.68,191.63,2.6103]
[1736412523589,2.6097,191.68,191.63,2.6103]
[1736412524293,2.6095,191.69,191.63,2.6103]
[1736412525089,3.5,191.71,191.57,1.511]
[1736412525288,20.2284744,191.73,191.66,2.6098]
[1736412526095,2.6092,191.71,191.66,2.6098]
[1736412526996,22.8375744,191.73,191.66,2.6098]
[1736412527195,22.8375744,191.73,191.57,18.2394744]
[1736412527196,20.2284744,191.73,191.57,18.2394744]
[1736412527501,1.4918,191.75,191.61,3.5]
[1736412527702,1.4918,191.75,191.62,1.5725]
[1736412528696,4.1005,191.75,191.65,2.6099]
[1736412528997,18.2611744,191.76,191.62,1.5725]
[1736412529202,20.8697744,191.76,191.7,2.6093]
[1736412529405,20.8697744,191.76,191.62,1.5725]
[1736412529406,18.2611744,191.76,191.62,1.5725]
[1736412529699,1.4779,191.75,191.62,1.5725]
[1736412529899,2.6089,191.74,191.62,1.5725]
[1736412530603,2.6089,191.74,191.62,5.0725]
[1736412531600,4.1413,191.76,191.63,16.7284744]
[1736412532204,2.6088,191.75,191.62,5.0725]
[1736412532405,18.2611744,191.76,191.62,5.0725]
[1736412532706,2.6088,191.74,191.7,2.6093]
[1736412533903,2.6087,191.75,191.7,2.6093]
[1736412534108,18.2611744,191.76,191.71,2.6092]
[1736412534699,20.8698744,191.76,191.71,2.6092]
[1736412534904,18.2611744,191.76,191.7,2.6093]
[1736412535100,18.2611744,191.76,191.63,3.5]
[1736412535305,16.7284744,191.73,191.62,1.5725]
[1736412535508,3.5,191.72,191.57,21.7394744]
[1736412535808,19.3378744,191.7,191.57,3.1101]
[1736412535998,16.7284744,191.7,191.63,2.6102]
[1736412536198,16.7284744,191.7,191.57,3.1101]
[1736412536402,2.6099,191.66,191.57,3.1101]
[1736412536604,3.5,191.65,191.57,3.1101]
[1736412536805,3.5,191.65,191.62,2.6104]
[1736412537304,3.5,191.65,191.63,2.6103]
[1736412537504,3.5,191.65,191.57,3.1101]
[1736412537902,3.5,191.65,191.63,2.6102]
[1736412538204,3.5,191.65,191.57,3.1101]
[1736412539906,3.5,191.65,191.64,2.6102]
[1736412541206,3.5,191.65,191.53,8.39522455]
[1736412541609,19.3386744,191.64,191.53,8.39522455]
[1736412542108,16.7284744,191.64,191.53,8.39522455]
[1736412542307,6.1101,191.65,191.53,8.39522455]
[1736412542704,6.1101,191.65,191.6,2.6106]
[1736412543011,3.5,191.65,191.53,8.39522455]
[1736412543807,3.5,191.65,191.62,2.6104]
[1736412545808,3.5,191.65,191.53,8.39522455]
[1736412546008,3.5,191.65,191.64,2.6102]
[1736412546312,3.5,191.65,191.54,20.2284744]
[1736412546507,5.0787,191.66,191.63,2.6103]
[1736412547107,5.0787,191.66,191.54,20.2284744]
[1736412547307,5.0787,191.66,191.54,3.5]
[1736412547509,5.0787,191.66,191.53,8.39522455]
[1736412547909,2.6102,191.65,191.6,2.6106]
[1736412548104,16.7284744,191.64,191.53,8.39522455]
[1736412548510,2.6104,191.63,191.58,2.611]
[1736412548709,16.7284744,191.64,191.53,8.39522455]
[1736412548910,16.7284744,191.61,191.53,8.39522455]
[1736412549218,3.5,191.6,191.46,28.59593386]
[1736412549410,10.47913133,191.58,191.48,1.52]
[1736412550111,3.5,191.6,191.49,10.47913133]
[1736412550313,3.5,191.6,191.52,2.6118]
[1736412550510,3.5,191.6,191.49,10.47913133]
[1736412551214,10.47913133,191.58,191.48,1.52]
[1736412551413,2.6114,191.56,191.51,2.6118]
[1736412551614,2.6114,191.56,191.48,1.52]
[1736412551815,16.77064354,191.58,191.48,1.52]
[1736412552112,2.6111,191.57,191.52,2.6117]
[1736412552313,16.77064354,191.54,191.44,1.3144]
[1736412552515,3.5,191.53,191.44,1.3144]
[1736412553108,3.5,191.53,191.52,2.6118]
[1736412553318,4.9729,191.57,191.45,16.77064354]
[1736412554407,3.5,191.57,191.45,16.77064354]
[1736412554813,16.77064354,191.61,191.45,20.27064354]
[1736412555018,3.5,191.6,191.45,20.27064354]
[1736412556319,3.5,191.6,191.58,2.6109]
[1736412556517,3.5,191.6,191.45,20.27064354]
[1736412557113,3.5,191.61,191.48,16.77064354]
[1736412558018,3.5,191.61,191.51,2.6118]
[1736412558218,4.9729,191.62,191.48,16.77064354]
[1736412558924,4.9729,191.62,191.58,2.6109]
[1736412559318,4.9729,191.62,191.48,16.77064354]
[1736412560214,4.9729,191.62,191.59,2.6108]
[1736412563923,4.9529,191.62,191.48,16.77064354]
[1736412564120,4.9529,191.62,191.58,2.611]
[1736412564315,4.9529,191.62,191.48,16.77064354]
[1736412565425,16.77064354,191.58,191.45,28.59593386]
[1736412565624,2.6115,191.55,191.5,2.612]
[1736412565825,3.48,191.54,191.5,2.612]
[1736412566726,3.48,191.54,191.43,1.4758]
[1736412566917,3.48,191.54,191.51,2.6119]
[1736412569429,3.48,191.54,191.43,1.4758]
[1736412569930,3.48,191.54,191.53,2.6117]
[1736412572227,3.48,191.54,191.47,2.6124]
[1736412572528,3.48,191.54,191.45,10.48060977]
[1736412572926,3.48,191.54,191.51,2.6119]
[1736412573533,13.96060977,191.54,191.51,2.6119]
[1736412574329,13.96060977,191.54,191.43,1.4758]
[1736412574530,18.17130977,191.54,191.49,2.6122]
[1736412575728,18.17130977,191.54,191.5,2.6121]
[1736412576031,2.6118,191.52,191.43,1.4758]
[1736412576429,15.55970977,191.54,191.43,1.4758]
[1736412577329,18.17130977,191.54,191.43,1.4758]
[1736412577731,18.17130977,191.54,191.5,2.612]
[1736412577732,15.55970977,191.54,191.5,2.612]
[1736412578035,15.55970977,191.54,191.43,1.4758]
[1736412578234,10.48060977,191.48,191.38,8.45958346]
[1736412578427,3.48,191.47,191.43,2.6129]
[1736412578828,3.48,191.47,191.41,2.6133]
[1736412579025,3.48,191.47,191.36,30.15763386]
[1736412579229,10.48060977,191.45,191.36,30.15763386]
[1736412579429,10.48060977,191.45,191.36,28.59593386]
[1736412579938,10.48060977,191.45,191.33,186.25824674]
[1736412580135,13.09340977,191.45,191.33,186.25824674]
[1736412580534,13.09340977,191.45,191.33,157.66231288]
[1736412581134,10.48060977,191.45,191.33,157.66231288]
[1736412581632,10.48060977,191.42,191.33,157.66231288]
[1736412581833,3.48,191.41,191.31,10.48060977]
[1736412582027,3.48,191.41,191.3,7.14898346]
[1736412582939,3.48,191.41,191.27,10.48060977]
[1736412582940,10.48060977,191.39,191.27,10.48060977]
[1736412583129,10.48060977,191.39,191.34,2.6142]
[1736412583728,10.48060977,191.39,191.38,2.6137]
[1736412583933,3.48,191.41,191.3,10.48060977]
[1736412584132,3.48,191.41,191.31,1.6131]
[1736412584437,3.48,191.41,191.4,2.6135]
[1736412584637,3.48,191.43,191.33,10.48060977]
[1736412585428,3.48,191.43,191.32,2.8341]
[1736412585834,10.48060977,191.42,191.32,2.8341]
[1736412586026,10.48060977,191.42,191.32,1.5188]
[1736412586429,13.09420977,191.39,191.34,2.6142]
[1736412587032,10.48060977,191.39,191.27,12.06380977]
[1736412587235,2.6138,191.38,191.33,2.6144]
[1736412587438,3.48,191.37,191.33,2.6144]
[1736412587634,3.48,191.37,191.35,2.6141]
[1736412589644,3.48,191.37,191.36,2.614]
[1736412590345,10.48060977,191.42,191.3,10.48060977]
[1736412590540,3.5,191.41,191.3,10.48060977]
[1736412591645,3.5,191.41,191.38,2.6136]
[1736412592245,3.5,191.41,191.27,1.5832]
[1736412592445,10.48060977,191.39,191.27,1.5832]
[1736412592642,10.48060977,191.39,191.29,10.48060977]
[1736412593641,10.48060977,191.39,191.3,2.6147]
[1736412593844,10.48060977,191.39,191.29,10.48060977]
[1736412594341,3.5,191.41,191.37,2.6137]
[1736412594648,1.5634,191.45,191.32,10.48060977]
[1736412594849,3.5,191.44,191.32,10.48060977]
[1736412595048,2.6129,191.44,191.4,2.6134]
[1736412595252,12.04400977,191.45,191.32,10.48060977]
[1736412595253,3.5,191.43,191.32,10.48060977]
[1736412595444,3.5,191.43,191.4,2.6133]
[1736412596045,3.5,191.43,191.41,2.6133]
[1736412596849,14.65680977,191.45,191.41,2.6133]
[1736412597050,3.5,191.44,191.41,2.6133]
[1736412597456,10.48060977,191.48,191.35,10.48060977]
[1736412597655,3.5,191.48,191.38,10.48060977]
[1736412599246,3.5,191.48,191.47,2.6125]
[1736412599752,3.5,191.48,191.45,2.6126]
[1736412600153,3.5,191.48,191.38,10.48060977]
[1736412601157,3.5,191.48,191.46,2.6126]
[1736412601753,3.5,191.48,191.47,2.6125]
[1736412603060,10.48060977,191.54,191.43,3.48]
[1736412603257,10.48060977,191.54,191.52,2.6118]
[1736412603451,10.48060977,191.56,191.44,12.08840977]
[1736412603752,10.48060977,191.56,191.47,2.6124]
[1736412604061,3.48,191.57,191.44,1.6078]
[1736412604062,10.48060977,191.53,191.44,1.6078]
[1736412604555,10.48060977,191.53,191.49,2.6122]
[1736412605352,13.09230977,191.53,191.41,13.96060977]
[1736412605753,10.48060977,191.53,191.41,10.48060977]
[1736412606454,10.48060977,191.46,191.36,3.124]
[1736412606646,13.96060977,191.46,191.36,3.124]
[1736412607851,13.96060977,191.46,191.39,2.6136]
[1736412608051,13.96060977,191.46,191.36,3.124]
[1736412608659,13.96060977,191.46,191.42,2.613]
[1736412609061,13.96060977,191.46,191.36,3.124]
[1736412609255,13.96060977,191.46,191.44,2.6129]
[1736412609657,13.96060977,191.46,191.36,1.5197]
[1736412609851,13.96060977,191.46,191.43,2.613]
[1736412610057,13.96060977,191.46,191.36,1.5197]
[1736412610252,13.96060977,191.46,191.39,2.6136]
[1736412610452,13.96060977,191.46,191.36,1.5197]
[1736412610958,13.96060977,191.46,191.44,2.6129]
[1736412611361,13.96060977,191.46,191.36,1.5197]
[1736412611658,3.48,191.46,191.45,2.6128]
[1736412613059,13.96060977,191.46,191.36,1.5197]
[1736412613853,13.96060977,191.46,191.42,2.6132]
[1736412614753,13.96060977,191.46,191.36,1.5197]
[1736412614953,16.57330977,191.46,191.34,1.5294]
[1736412615562,13.96060977,191.46,191.34,1.5294]
[1736412616161,3.48,191.46,191.34,1.5294]
[1736412616559,3.48,191.46,191.45,2.6128]
[1736412617062,2.6112,191.57,191.52,2.6117]
[1736412617255,0.80643893,191.56,191.43,13.96060977]
[1736412617451,10.48060977,191.57,191.46,10.48060977]
[1736412617858,10.48060977,191.57,191.49,2.6122]
[1736412618065,10.48060977,191.57,191.46,10.48060977]
[1736412618556,2.6113,191.56,191.44,1.5915]
[1736412619662,2.6113,191.56,191.52,2.6118]
[1736412619863,13.09170977,191.57,191.52,2.6118]
[1736412620172,10.48060977,191.57,191.44,1.5915]
[1736412620458,0.80639585,191.56,191.44,1.5915]
[1736412620664,10.48060977,191.54,191.42,1.505]
[1736412620861,10.48060977,191.51,191.4,3.48]
[1736412621161,1.609,191.5,191.4,3.48]
[1736412622057,4.2211,191.5,191.45,2.6128]
[1736412625067,4.2211,191.5,191.46,2.6126]
[1736412625260,1.609,191.5,191.37,12.07850977]
[1736412625457,5.0662,191.53,191.4,10.48060977]
[1736412625958,1.5862,191.53,191.43,10.48060977]
[1736412626466,10.48060977,191.57,191.43,10.48060977]
[1736412626664,0.80640719,191.56,191.46,10.48060977]
[1736412627558,4.5805,191.59,191.56,2.6113]
[1736412628171,7.1914,191.59,191.54,2.6115]
[1736412628667,0.80627777,191.58,191.47,1.4613]
[1736412628868,4.5805,191.59,191.55,2.6114]
[1736412629368,4.5805,191.59,191.57,2.6111]
[1736412629565,1.5107,191.59,191.57,2.6111]
[1736412630263,1.5107,191.59,191.58,2.611]
[1736412630467,15.44101407,191.63,191.52,10.48060977]
[1736412630865,15.44101407,191.63,191.6,2.6107]
[1736412633066,3.48,191.68,191.55,10.48060977]
[1736412633272,0.80580212,191.67,191.55,12.09040977]
[1736412633465,4.9551,191.68,191.55,12.09040977]
[1736412634273,4.9551,191.68,191.64,2.6101]
[1736412634661,4.9551,191.68,191.58,10.48060977]
[1736412634867,2.6098,191.67,191.62,2.6104]
[1736412635180,4.9551,191.68,191.58,10.48060977]
[1736412635365,1.4751,191.68,191.58,10.48060977]
[1736412635575,1.4751,191.68,191.65,2.6099]
[1736412638265,1.4751,191.68,191.55,12.09040977]
[1736412638471,10.48060977,191.66,191.55,12.09040977]
[1736412638670,2.6103,191.64,191.58,2.611]
[1736412639072,10.48060977,191.66,191.55,1.6098]
[1736412639774,2.6101,191.65,191.55,1.6098]
[1736412640978,10.48060977,191.66,191.55,1.6098]
[1736412641673,4.9551,191.68,191.63,2.6103]